bitfinex/quotes_ETHUSD_20260312
["timestamp","ask_amount","ask_price","bid_price","bid_amount"]
[1773317680539,0.001,2060.8,2060.7,0.88305572]
[1773317681139,0.85165972,2061.1,2060.8,0.88195572]
[1773317681511,0.85165972,2061.1,2060.8,2.09503829]
[1773317681838,0.001,2061.1,2060.9,0.88195572]
[1773317682064,2.06460967,2061.1,2060.8,0.88195572]
[1773317682207,0.85065972,2061.0,2060.5,0.0011]
[1773317682406,0.85065972,2060.9,2060.5,0.0011]
[1773317683824,0.86958817,2060.7,2060.5,0.0011]
[1773317685346,0.86958817,2060.9,2060.5,0.0011]
[1773317685535,0.86958817,2060.9,2060.5,0.86300355]
[1773317686040,0.86958817,2060.9,2060.5,2.07625999]
[1773317686544,2.08265157,2060.9,2060.5,2.07625999]
[1773317687340,1.2130634,2060.9,2060.5,0.86300355]
[1773317687619,0.86958817,2060.8,2060.5,0.0011]
[1773317689416,0.86958817,2060.7,2060.5,0.0011]
[1773317693249,0.86958817,2060.7,2060.3,1.21447163]
[1773317693452,1.21312667,2060.8,2060.3,1.21447163]
[1773317693453,0.8380841,2060.6,2060.3,1.21447163]
[1773317693625,0.8380841,2060.6,2060.3,2.09370211]
[1773317694852,0.8380841,2060.8,2060.4,0.87923048]
[1773317695352,0.8380841,2060.8,2060.5,1.21329774]
[1773317695552,0.8380841,2060.8,2060.5,2.09252822]
[1773317696366,0.8380841,2060.8,2060.5,0.87923048]
[1773317696655,1.21317795,2060.8,2060.3,0.0011]
[1773317696822,0.8380841,2060.7,2060.3,0.0011]
[1773317697027,0.8380841,2060.7,2060.3,1.21451031]
[1773317697338,0.8380841,2060.7,2060.3,2.09374079]
[1773317699249,2.05127251,2060.7,2060.3,2.09374079]
[1773317699455,0.8380841,2060.6,2060.3,0.0011]
[1773317701254,0.8380841,2060.6,2060.3,1.21451252]
[1773317701956,2.05121948,2060.8,2060.3,2.093743]
[1773317702158,0.8380841,2061.0,2060.5,0.87923048]
[1773317702450,0.8380841,2061.0,2060.6,0.87923048]
[1773317703435,0.8380841,2061.0,2060.7,1.21317998]
[1773317703637,0.8380841,2061.0,2060.6,2.09242291]
[1773317704434,0.8380841,2060.9,2060.6,2.09242291]
[1773317708159,0.8390841,2061.1,2060.7,0.87923048]
[1773317710031,0.001,2061.1,2060.8,2.09235159]
[1773317712556,0.8390841,2061.1,2060.8,2.09235159]
[1773317713639,0.001,2061.1,2060.8,2.09235159]
[1773317715358,0.001,2061.1,2060.9,0.87923048]
[1773317716158,0.001,2061.1,2061.0,2.09223387]
[1773317716364,0.8390841,2061.1,2060.5,1.53461593]
[1773317716581,0.8380841,2060.8,2060.5,0.0011]
[1773317717157,0.8380841,2060.7,2060.3,0.0011]
[1773317717940,0.8380841,2060.7,2060.5,0.0011]
[1773317718140,2.05132296,2060.6,2060.5,0.0011]
[1773317718360,0.8380841,2060.6,2060.5,0.0011]
[1773317719731,0.8380841,2060.8,2060.5,0.0011]
[1773317720172,1.21410304,2060.9,2060.1,1.21353332]
[1773317720173,0.79885083,2060.4,2060.1,1.21353332]
[1773317720341,0.79885083,2060.4,2060.0,5.73446377]
[1773317720342,0.79885083,2060.4,2060.0,0.0011]
[1773317721359,0.76655387,2060.4,2060.0,0.0011]
[1773317722245,2.01213356,2060.6,2060.1,0.81145069]
[1773317724663,2.01213356,2060.6,2060.2,0.81145069]
[1773317725344,0.79885083,2060.5,2060.2,0.81145069]
[1773317728176,0.79885083,2060.7,2060.3,0.81145069]
[1773317728756,0.79885083,2060.7,2060.1,2.02493516]
[1773317728956,0.79885083,2060.7,2060.2,0.81145069]
[1773317729977,2.01208969,2060.6,2060.4,0.0011]
[1773317730774,0.79885083,2060.6,2060.4,0.0011]
[1773317733075,0.79885083,2060.5,2060.1,0.0011]
[1773317734985,0.79885083,2060.1,2060.0,0.0011]
[1773317735980,2.01232524,2060.2,2060.0,0.0011]
[1773317738578,0.79885083,2060.2,2060.0,0.0011]
[1773317738761,2.01235461,2060.2,2060.0,0.0011]
[1773317739248,0.79885083,2060.2,2060.0,0.0011]
[1773317741471,0.79885083,2060.4,2060.0,0.0011]
[1773317741780,2.467,2060.4,2060.0,0.81255069]
[1773317742103,3.26585083,2060.4,2060.0,0.81255069]
[1773317742580,0.79885083,2060.4,2060.0,0.81255069]
[1773317742786,0.79885083,2060.4,2060.2,0.0011]
[1773317742984,0.79985083,2060.3,2060.2,0.0011]
[1773317748390,0.001,2060.3,2060.2,0.0011]
[1773317751587,0.78196643,2060.3,2060.0,0.0011]
[1773317751971,0.78196643,2060.3,2060.0,1.21469065]
[1773317752198,0.001,2060.3,2060.0,2.01203968]
[1773317752369,0.001,2060.3,2060.1,0.79734903]
[1773317753400,0.001,2060.3,2060.1,2.01087621]
[1773317753906,0.001,2060.3,2060.2,0.79734903]
[1773317754073,2.471,2060.6,2060.3,0.79734903]
[1773317754583,1.99417972,2060.7,2060.3,0.79734903]
[1773317754584,3.25196643,2060.7,2060.3,0.79734903]
[1773317755098,4.46515282,2060.7,2060.3,0.79734903]
[1773317755493,0.78096643,2060.6,2060.3,0.0011]
[1773317757077,1.99422964,2060.6,2060.3,0.0011]
[1773317758006,0.78096643,2060.5,2060.3,0.0011]
[1773317760007,4.46518615,2060.7,2060.3,0.79844903]
[1773317760177,0.78096643,2060.8,2060.3,0.79844903]
[1773317762006,0.78096643,2060.4,2060.0,0.0011]
[1773317762183,0.78096643,2060.4,2060.0,0.79844903]
[1773317762383,1.99418886,2060.7,2060.0,0.79844903]
[1773317762579,4.46718886,2060.7,2060.0,0.79844903]
[1773317764411,0.78096643,2060.6,2060.0,1.21464739]
[1773317764579,0.78096643,2060.6,2060.1,0.79734903]
[1773317767590,1.21329774,2060.5,2060.1,0.79734903]
[1773317768816,1.99426417,2060.5,2060.1,0.79734903]
[1773317768999,1.99426417,2060.5,2060.3,0.0011]
[1773317769516,0.001,2060.4,2060.3,0.0011]
[1773317771225,0.78196643,2060.4,2060.3,0.0011]
[1773317771393,0.78196643,2060.4,2060.0,0.79844903]
[1773317772305,0.78196643,2060.4,2060.0,2.01201483]
[1773317772929,1.99533071,2060.4,2060.0,0.79844903]
[1773317773811,0.78196643,2060.4,2060.0,2.01203009]
[1773317774314,0.78196643,2060.4,2060.0,1.21468106]
[1773317774489,0.78196643,2060.4,2060.1,0.79734903]
[1773317780907,0.001,2060.4,2060.1,0.79734903]
[1773317781206,0.001,2060.4,2060.3,0.0011]
[1773317783506,0.77633432,2060.4,2060.3,0.0011]
[1773317785723,0.001,2060.4,2060.3,0.76720202]
[1773317788436,0.001,2060.4,2060.1,0.76610202]
[1773317788609,0.77633432,2060.4,2060.1,0.76610202]
[1773317788814,0.001,2060.4,2060.1,0.76610202]
[1773317790954,0.001,2060.4,2060.1,1.21351681]
[1773317791235,0.001,2060.4,2060.2,0.76610202]
[1773317792032,0.001,2060.4,2060.0,1.21464575]
[1773317792237,0.77633432,2060.4,2060.0,1.98074777]
[1773317792948,0.77633432,2060.4,2060.1,0.76610202]
[1773317793155,0.001,2060.9,2060.4,0.76610202]
[1773317793337,0.001,2061.1,2060.6,0.76610202]
[1773317793514,0.001,2061.1,2060.8,0.76610202]
[1773317795147,0.001,2061.1,2061.0,0.76610202]
[1773317797140,0.001,2061.3,2061.0,0.76610202]
[1773317797316,0.001,2061.3,2061.1,1.21294454]
[1773317797522,0.001,2061.3,2061.2,0.76610202]
[1773317799053,0.77633432,2061.3,2060.6,0.76610202]
[1773317799224,0.77533432,2061.2,2060.8,1.97922313]
[1773317799423,0.77533432,2061.1,2060.6,1.97930324]
[1773317799624,0.77533432,2061.1,2060.5,0.76610202]
[1773317800131,0.77533432,2061.0,2060.4,1.21331643]
[1773317800354,0.77533432,2061.0,2060.3,1.98057074]
[1773317801445,0.77533432,2060.8,2060.3,1.98057074]
[1773317802655,4.85219022,2061.0,2060.4,0.76610202]
[1773317802656,1.9883632,2061.0,2060.4,0.76610202]
[1773317802951,0.77533432,2060.9,2060.4,0.76610202]
[1773317803649,0.77533432,2060.9,2060.5,0.78205909]
[1773317804726,0.77533432,2060.9,2060.3,5.5091808]
[1773317804727,0.78679666,2060.8,2060.3,0.0011]
[1773317805145,0.78679666,2060.8,2060.5,0.0011]
[1773317805749,0.78679666,2060.6,2060.5,0.0011]
[1773317807726,2.00003552,2060.6,2060.5,0.0011]
[1773317811165,0.80049509,2060.5,2060.3,0.0011]
[1773317811940,0.80049509,2060.4,2060.3,0.0011]
[1773317812344,0.80049509,2060.4,2060.0,0.0011]
[1773317813072,0.80049509,2060.2,2060.0,0.0011]
[1773317815147,2.01397756,2060.2,2060.0,0.0011]
[1773317815464,0.80049509,2060.2,2060.0,0.0011]
[1773317815966,0.80049509,2060.1,2060.0,0.0011]
[1773317816171,2.01398082,2060.2,2060.0,0.0011]
[1773317817206,0.80049509,2060.1,2060.0,0.0011]
[1773317819284,0.80049509,2060.3,2060.0,0.0011]
[1773317819454,0.80049509,2060.3,2060.0,0.79089382]
[1773317821368,1.21344923,2060.3,2060.0,0.79089382]
[1773317821543,2.01389761,2060.4,2060.0,0.79089382]
[1773317821864,2.01389761,2060.4,2060.1,0.78979382]
[1773317822243,3.69034458,2060.5,2060.1,0.78979382]
[1773317822542,4.49083967,2060.5,2060.1,0.78979382]
[1773317823960,0.80049509,2060.1,2059.9,0.0011]
[1773317824196,9.58141995,2060.5,2059.8,0.0011]
[1773317824197,0.80049509,2059.9,2059.8,0.0011]
[1773317827080,2.01414623,2059.9,2059.8,0.0011]
[1773317829498,0.80049509,2060.1,2059.8,0.79089382]
[1773317829688,3.69351417,2060.2,2059.8,0.79089382]
[1773317829866,2.48,2060.2,2059.8,0.79089382]
[1773317830386,2.48,2060.2,2060.0,0.0011]
[1773317830595,2.0139446,2060.3,2060.0,0.79089382]
[1773317830979,1.21338474,2060.4,2060.0,0.79089382]
[1773317832088,4.85299162,2060.6,2060.1,0.78979382]
[1773317833292,5.65348671,2060.6,2060.1,0.78979382]
[1773317834594,0.80049509,2060.5,2060.1,0.78979382]
[1773317836980,1.21335662,2060.4,2060.1,0.78979382]
[1773317837302,1.21334686,2060.5,2060.1,0.78979382]
[1773317839471,0.80049509,2060.5,2060.1,0.78979382]
[1773317840004,0.80049509,2060.3,2060.0,0.0011]
[1773317841878,2.013954,2060.3,2060.0,0.0011]
[1773317842573,2.013954,2060.3,2060.1,0.0011]
[1773317842777,2.014954,2060.3,2060.1,0.0011]
[1773317844096,0.001,2060.3,2060.1,0.72530266]
[1773317844296,1.21441789,2060.3,2060.1,0.72530266]
[1773317844516,0.001,2060.3,2060.1,0.72530266]
[1773317845003,1.21442,2060.3,2060.1,0.72530266]
[1773317845206,0.001,2060.3,2060.1,0.72530266]
[1773317845815,0.77499126,2060.7,2060.1,0.72530266]
[1773317846004,0.001,2060.9,2060.5,0.72420266]
[1773317846515,0.77499126,2060.8,2060.3,0.72420266]
[1773317846714,0.65607672,2060.9,2060.1,0.0011]
[1773317846715,0.77499126,2060.4,2060.1,0.0011]
[1773317847093,0.77499126,2060.8,2060.2,0.72420266]
[1773317847814,0.001,2060.9,2060.4,0.72420266]
[1773317848014,0.001,2060.9,2060.6,0.72420266]
[1773317849515,0.77599126,2060.9,2060.3,0.72420266]
[1773317849821,0.77499126,2060.7,2060.1,0.72530266]
[1773317850011,0.77499126,2060.5,2060.1,0.72530266]
[1773317850489,0.77499126,2060.5,2060.1,0.0011]
[1773317850685,0.77499126,2060.5,2060.1,1.93883407]
[1773317850890,4.47621564,2060.7,2060.2,0.72420266]
[1773317851991,4.47621564,2060.7,2060.3,0.72420266]
[1773317853010,0.77499126,2060.6,2060.1,1.93878976]
[1773317853720,0.77499126,2060.6,2060.1,1.93882812]
[1773317854323,1.21329774,2060.5,2060.1,1.93882812]
[1773317854526,1.988289,2060.5,2060.1,1.93882812]
[1773317855596,1.989289,2060.5,2060.1,1.93882812]
[1773317855797,0.77599126,2060.5,2060.1,1.93882812]
[1773317856023,0.001,2060.5,2060.2,0.72420266]
[1773317856429,0.77499126,2060.4,2060.1,0.0011]
[1773317857127,0.001,2060.5,2060.1,0.72530266]
[1773317858431,0.001,2060.5,2060.3,0.72420266]
[1773317859629,0.001,2060.9,2060.3,0.72420266]
[1773317859802,0.001,2061.0,2060.8,0.72420266]
[1773317860804,0.001,2061.0,2060.9,0.72420266]
[1773317862733,0.001,2061.3,2061.0,1.21300339]
[1773317862902,0.001,2061.3,2061.1,0.72420266]
[1773317863832,0.001,2061.5,2061.1,0.72420266]
[1773317864521,0.001,2061.5,2060.9,5.50712751]
[1773317864522,0.75335785,2061.4,2060.9,0.74162046]
[1773317864720,1.96624354,2061.2,2060.5,0.74162046]
[1773317864923,0.75335785,2061.1,2060.6,0.74162046]
[1773317865421,0.001,2061.5,2061.0,0.74162046]
[1773317865623,1.21371547,2061.5,2061.0,0.74162046]
[1773317865935,0.75335785,2061.4,2061.0,0.74162046]
[1773317866706,1.96613333,2061.4,2061.0,1.95459576]
[1773317868438,0.001,2061.2,2061.0,1.95459576]
[1773317869139,0.001,2061.2,2061.1,0.74162046]
[1773317869812,0.001,2061.2,2060.9,0.74162046]
[1773317870016,0.001,2061.2,2060.9,1.95467768]
[1773317870240,0.001,2061.2,2061.0,0.71644968]
[1773317870742,0.73822641,2061.5,2061.0,0.71644968]
[1773317871338,0.001,2061.5,2061.2,0.71644968]
[1773317873645,0.001,2061.5,2061.4,0.71644968]
[1773317875617,0.001,2062.1,2061.6,0.71644968]
[1773317875846,0.73822641,2062.1,2061.6,0.71644968]
[1773317876534,0.73722641,2062.0,2061.5,0.71644968]
[1773317876722,0.73722641,2062.0,2061.4,0.71644968]
[1773317878021,1.94970034,2061.9,2061.4,0.71644968]
[1773317879048,0.73722641,2061.8,2061.4,0.71644968]
[1773317879352,0.73722641,2061.8,2061.2,1.92930421]
[1773317879855,0.73722641,2061.8,2061.3,0.71644968]
[1773317880053,0.73722641,2061.6,2061.1,0.71644968]
[1773317880424,0.73722641,2061.6,2061.1,0.71754968]
[1773317882143,0.73722641,2061.7,2061.2,0.71644968]
[1773317884047,0.001,2061.8,2061.4,0.71644968]
[1773317884242,0.001,2061.8,2061.6,0.71644968]
[1773317884542,0.001,2061.8,2061.5,0.65507672]
[1773317884543,0.001,2062.1,2061.8,0.71644968]
[1773317884950,0.001,2062.1,2061.3,1.21282685]
[1773317884952,5.50433119,2062.6,2061.3,1.21282685]
[1773317884953,0.001,2063.3,2062.4,0.71644968]
[1773317885144,1.21189628,2063.3,2062.8,0.71644968]
[1773317885469,0.73822641,2063.5,2063.0,0.71644968]
[1773317885470,1.21254607,2063.5,2063.0,0.71644968]
[1773317885764,0.73722641,2063.4,2062.6,0.71644968]
[1773317885953,0.001,2063.5,2062.8,0.71644968]
[1773317886147,0.73822641,2063.5,2062.8,0.71644968]
[1773317886866,0.73822641,2063.5,2062.7,0.71644968]
[1773317887772,0.73822641,2063.5,2062.8,0.71644968]
[1773317887981,0.001,2063.5,2062.8,0.71644968]
[1773317888148,0.001,2063.5,2063.0,0.71644968]
[1773317888864,0.001,2063.5,2063.2,0.71644968]
[1773317890143,0.001,2063.5,2063.3,1.21165123]
[1773317890335,0.001,2063.5,2063.4,0.71644968]
[1773317891237,0.001,2063.5,2063.1,1.21171135]
[1773317891437,0.001,2063.5,2063.0,0.71644968]
[1773317892154,0.001,2063.5,2063.1,0.71644968]
[1773317892345,0.001,2063.5,2063.1,1.92817007]
[1773317892549,0.001,2063.5,2063.1,0.71644968]
[1773317893060,0.001,2063.5,2063.1,1.92821508]
[1773317893248,0.001,2063.5,2063.2,0.71644968]
[1773317893570,0.001,2063.7,2063.3,0.71644968]
[1773317894071,0.001,2063.7,2063.1,1.92821508]
[1773317894275,0.73822641,2063.7,2063.1,0.71644968]
[1773317894442,0.001,2063.3,2062.9,1.92833585]
[1773317894644,0.001,2063.3,2062.9,0.71644968]
[1773317895356,1.21147509,2063.6,2062.9,0.71644968]
[1773317896480,1.21147509,2063.6,2062.9,1.21183998]
[1773317896481,1.9487015,2063.6,2062.9,1.21183998]
[1773317896679,1.21147509,2063.6,2063.1,0.71644968]
[1773317896880,1.2124369,2063.7,2063.1,0.71644968]
[1773317897178,0.001,2063.7,2063.1,0.71644968]
[1773317897485,0.001,2063.7,2063.3,0.71644968]
[1773317897855,1.21241742,2063.7,2063.3,0.71644968]
[1773317898586,0.001,2063.7,2063.3,0.71644968]
[1773317899386,0.001,2063.7,2063.2,1.21167105]
[1773317899882,0.001,2063.7,2063.2,1.92812073]
[1773317901466,1.96055884,2063.7,2063.2,0.71644968]
[1773317901761,1.96055884,2063.7,2063.0,1.93391399]
[1773317901961,1.96055884,2063.7,2063.0,1.21177677]
[1773317902167,1.96055884,2063.7,2063.1,0.72213722]
[1773317902368,0.74814246,2063.6,2063.1,0.72213722]
[1773317902877,1.21241638,2063.7,2062.9,0.72213722]
[1773317903762,1.21241638,2063.7,2063.1,0.72213722]
[1773317903955,0.74814246,2063.6,2062.9,0.72213722]
[1773317904358,0.74814246,2063.6,2063.1,0.72213722]
[1773317905062,0.74814246,2063.6,2062.7,1.9341409]
[1773317905293,0.74814246,2063.6,2062.8,0.72213722]
[1773317906453,0.74814246,2063.4,2062.8,1.93408197]
[1773317906686,0.74814246,2063.4,2062.8,0.72213722]
[1773317907087,0.74814246,2063.4,2063.1,0.0011]
[1773317907686,0.74814246,2063.4,2062.9,0.0011]
[1773317908784,1.95979369,2063.3,2062.9,0.0011]
[1773317911081,0.74814246,2063.2,2062.9,0.0011]
[1773317912467,1.63143681,2063.2,2062.9,0.0011]
[1773317912667,1.63143681,2063.2,2062.6,0.0011]
[1773317912668,0.74814246,2063.1,2062.6,0.0011]
[1773317913291,1.95996989,2063.0,2062.6,0.0011]
[1773317913788,0.74814246,2063.0,2062.6,0.0011]
[1773317916068,1.21188617,2062.9,2062.6,0.0011]
[1773317916674,0.74814246,2062.8,2062.6,0.0011]
[1773317917468,4.84707479,2063.2,2062.6,0.0011]
[1773317917469,0.001,2063.5,2062.7,0.72213722]
[1773317917670,0.001,2063.7,2063.0,0.72213722]
[1773317918002,6.47548538,2064.4,2063.0,0.72213722]
[1773317918003,0.74814246,2064.5,2063.4,0.72213722]
[1773317918176,1.45248324,2065.5,2063.9,2.35357403]
[1773317918177,0.74814246,2065.0,2063.9,2.35357403]
[1773317918364,0.74814246,2064.7,2063.7,0.72213722]
[1773317918672,0.74814246,2064.7,2063.7,0.72133722]
[1773317918872,0.74814246,2064.5,2063.7,0.72133722]
[1773317919269,0.74814246,2064.5,2063.4,0.72213722]
[1773317919473,4.07443681,2064.6,2063.4,0.72213722]
[1773317919474,0.74814246,2064.3,2063.4,0.72213722]
[1773317920100,1.95926541,2064.2,2063.5,0.72213722]
[1773317920572,1.21112295,2064.2,2063.5,0.72213722]
[1773317920767,4.84447141,2064.4,2063.5,0.72213722]
[1773317920768,4.84410673,2064.4,2063.5,0.72213722]
[1773317920972,4.84410673,2064.4,2063.6,0.72213722]
[1773317921670,1.21198575,2064.5,2063.8,0.72213722]
[1773317921899,1.211999,2064.5,2063.8,0.72213722]
[1773317922106,1.211999,2064.5,2063.8,1.93346367]
[1773317922107,0.74914246,2064.5,2063.8,1.93346367]
[1773317922401,0.74914246,2064.5,2064.0,0.72213722]
[1773317922402,0.001,2064.5,2064.0,0.72213722]
[1773317923082,1.21059512,2065.1,2064.2,0.72213722]
[1773317923281,1.95873758,2065.1,2064.2,0.72213722]
[1773317923480,0.74814246,2065.0,2064.2,0.72213722]
[1773317923885,1.93867698,2065.2,2064.4,0.72891986]
[1773317924274,1.93867698,2065.2,2064.5,0.72891986]
[1773317924912,0.72810122,2065.4,2064.6,0.72891986]
[1773317925098,1.21045649,2065.4,2064.6,0.72891986]
[1773317925810,0.72810122,2065.3,2064.3,1.93994569]
[1773317926023,0.72810122,2065.3,2064.3,0.72891986]
[1773317926188,1.93863772,2065.2,2064.4,0.72891986]
[1773317926392,1.2105365,2065.2,2064.5,0.72891986]
[1773317926583,0.72810122,2065.1,2064.2,0.72891986]
[1773317926782,0.72810122,2065.1,2064.3,0.72891986]
[1773317927216,1.2105365,2065.2,2064.6,1.63143681]
[1773317927421,0.72810122,2065.1,2064.3,0.72891986]
[1773317927796,1.2105365,2065.2,2064.4,0.72891986]
[1773317928382,1.2105365,2065.2,2064.6,0.72891986]
[1773317928909,1.2105365,2065.2,2064.2,0.72891986]
[1773317928910,0.72810122,2065.1,2064.2,0.72891986]
[1773317929082,0.72810122,2065.0,2064.2,0.72891986]
[1773317929282,0.72810122,2065.0,2064.0,0.72891986]
[1773317929507,0.72810122,2064.9,2064.0,0.72891986]
[1773317929688,0.72810122,2064.8,2064.0,0.72891986]
[1773317929896,0.72810122,2064.8,2063.7,1.94033209]
[1773317930413,0.72810122,2064.8,2063.8,0.72980132]
[1773317930602,1.21082966,2064.7,2063.9,1.21129899]
[1773317930801,1.21082966,2064.7,2063.9,1.98955226]
[1773317930993,1.21082966,2064.7,2064.0,0.72980132]
[1773317931914,0.74452824,2064.6,2063.8,0.72980132]
[1773317932086,0.74452824,2064.6,2063.5,1.63143681]
[1773317932087,0.74452824,2064.6,2063.5,5.57582708]
[1773317932483,0.74452824,2064.6,2063.6,0.72980132]
[1773317933083,1.21094696,2064.5,2063.9,0.0011]
[1773317933283,0.74452824,2064.4,2063.9,0.0011]
[1773317934395,1.21094696,2064.5,2063.6,0.0011]
[1773317934396,0.74452824,2064.2,2063.6,0.0011]
[1773317935413,1.21118162,2064.1,2063.6,0.0011]
[1773317935791,1.95570986,2064.1,2063.6,0.0011]
[1773317939419,0.74452824,2064.0,2063.6,0.0011]
[1773317940198,1.95582723,2063.9,2063.6,0.0011]
[1773317941197,0.74452824,2063.8,2063.6,0.0011]
[1773317941710,1.21129899,2063.9,2063.6,0.0011]
[1773317945334,1.21129899,2063.9,2063.4,1.94244069]
[1773317945335,0.74452824,2063.8,2063.4,0.0011]
[1773317945497,0.74452824,2063.6,2063.4,0.0011]
[1773317946205,3.70068051,2063.9,2062.8,0.0011]
[1773317946206,0.74452824,2063.4,2062.8,0.0011]
[1773317946607,1.21165123,2063.3,2062.8,0.0011]
[1773317946942,1.95617947,2063.3,2062.8,0.0011]
[1773317947305,1.21165123,2063.3,2062.8,0.73090132]
[1773317947927,1.21161019,2063.4,2062.8,0.73090132]
[1773317948128,5.5908983,2063.5,2062.8,0.73090132]
[1773317948129,4.8460232,2063.6,2062.8,0.73090132]
[1773317948435,1.95600333,2063.6,2062.8,0.73090132]
[1773317949226,1.95600333,2063.6,2062.9,0.72980132]
[1773317950713,0.74452824,2063.5,2062.9,0.72980132]
[1773317951015,0.74452824,2063.5,2062.8,0.0011]
[1773317951216,0.74452824,2063.3,2062.8,0.0011]
[1773317954531,1.9562382,2063.2,2062.8,0.0011]
[1773317956837,1.21165123,2063.3,2062.8,0.73090132]
[1773317958739,1.21165123,2063.3,2062.8,1.94281073]
[1773317959511,5.59100788,2063.4,2062.8,1.94281073]
[1773317959889,1.21165123,2063.3,2063.0,0.0011]
[1773317960042,4.84647964,2063.4,2063.1,0.72980132]
[1773317960218,1.21147509,2063.6,2063.1,0.72980132]
[1773317961022,0.001,2063.7,2063.3,0.70957929]
[1773317961230,0.001,2063.7,2063.2,1.21170996]
[1773317961833,2.513,2063.9,2063.3,0.70957929]
[1773317962223,4.45984535,2063.9,2063.3,0.70957929]
[1773317962430,0.73552344,2063.8,2063.1,1.92129895]
[1773317962751,1.211347,2063.9,2063.2,0.70957929]
[1773317962934,1.94681015,2064.0,2063.2,0.70957929]
[1773317963314,1.21128671,2064.0,2063.4,0.70957929]
[1773317964934,1.94681015,2064.0,2063.4,0.70957929]
[1773317965416,1.94681015,2064.0,2063.4,1.21155116]
[1773317965618,1.94681015,2064.0,2063.5,0.70957929]
[1773317965814,1.94681015,2064.0,2063.4,1.21155116]
[1773317966042,0.73552344,2063.9,2063.3,1.92118497]
[1773317966948,6.71730676,2064.4,2063.5,0.70957929]
[1773317966949,1.94663447,2064.3,2063.5,0.70957929]
[1773317967444,1.21111103,2064.3,2063.5,0.70957929]
[1773317967635,1.21105123,2064.4,2063.6,1.21147509]
[1773317967839,1.21105123,2064.4,2063.7,0.70957929]
[1773317968848,1.21105123,2064.4,2063.5,1.21151422]
[1773317968849,0.73552344,2064.3,2063.5,1.21151422]
[1773317969433,0.73552344,2064.3,2063.5,1.92109351]
[1773317970056,1.94664639,2064.2,2063.5,1.92109351]
[1773317971048,0.73552344,2064.2,2063.6,0.70957929]
[1773317971524,1.21111104,2064.3,2063.6,0.70957929]
[1773317972339,1.94663448,2064.3,2063.7,1.67045804]
[1773317973159,0.73552344,2064.2,2063.5,1.66943035]
[1773317973458,0.001,2064.0,2063.5,1.66943035]
[1773317975558,0.001,2064.0,2063.6,0.45453819]
[1773317976854,0.001,2064.0,2063.7,1.66482143]
[1773317977358,0.001,2064.0,2063.8,0.45340505]
[1773317977932,0.001,2064.0,2063.7,1.21141638]
[1773317978131,0.001,2064.0,2063.6,1.66372707]
[1773317978865,0.001,2064.0,2063.7,0.45114958]
[1773317980778,0.001,2064.0,2063.6,1.21144856]
[1773317981249,0.001,2064.0,2063.6,1.66031868]
[1773317982335,1.21113684,2064.2,2063.7,0.44773009]
[1773317982778,4.84428995,2064.3,2063.7,1.69461049]
[1773317983052,4.84428995,2064.3,2063.8,0.4455878]
[1773317983256,0.73552344,2064.6,2064.0,1.63222688]
[1773317983466,1.21088266,2064.7,2064.1,0.4455878]
[1773317983669,1.90968638,2064.8,2064.1,0.4455878]
[1773317983841,0.69887706,2064.7,2064.1,0.4455878]
[1773317984036,0.69887706,2064.7,2063.9,0.44332709]
[1773317985247,0.69887706,2064.5,2063.8,3.43131046]
[1773317985640,0.69887706,2064.5,2063.8,3.8738935]
[1773317985835,0.69887706,2064.5,2063.9,0.44258304]
[1773317986073,0.69887706,2064.5,2064.0,0.04474961]
[1773317987177,0.69887706,2064.5,2064.1,1.21118162]
[1773317987490,0.69887706,2064.5,2064.0,0.44027281]
[1773317987491,1.90983999,2064.5,2064.0,0.44027281]
[1773317987641,1.90983999,2064.5,2063.7,0.0011]
[1773317987642,0.69887706,2064.4,2063.7,0.0011]
[1773317988288,0.69887706,2064.4,2063.7,1.21251041]
[1773317988494,0.69887706,2064.4,2063.7,1.65278322]
[1773317989056,0.69887706,2064.4,2063.8,0.43911625]
[1773317989244,1.21106428,2064.3,2063.8,1.6504307]
[1773317989575,1.90992993,2064.4,2063.9,0.43796035]
[1773317990350,1.90992084,2064.4,2063.9,0.43796035]
[1773317990958,1.21104378,2064.4,2063.9,0.43796035]
[1773317991178,1.93015882,2064.6,2063.9,0.43796035]
[1773317991654,1.93015882,2064.6,2064.0,1.21124031]
[1773317991854,1.930129,2064.6,2064.1,0.43599944]
[1773317992775,1.21087157,2064.7,2064.1,0.43599944]
[1773317992955,0.71922589,2064.6,2064.0,1.21124031]
[1773317993153,0.71922589,2064.6,2063.8,1.64613627]
[1773317993357,0.71922589,2064.6,2063.7,0.0011]
[1773317993358,0.71922589,2064.5,2063.7,0.0011]
[1773317993569,0.71922589,2064.3,2063.7,0.0011]
[1773317995849,0.71922589,2064.1,2063.7,0.0011]
[1773317997557,0.71922589,2064.4,2063.7,0.43010488]
[1773317998776,0.71922589,2064.4,2063.8,1.21135768]
[1773317998777,1.93029017,2064.3,2063.8,1.21135768]
[1773317999350,0.71922589,2064.2,2063.8,1.21135768]
[1773317999960,0.71922589,2064.2,2063.9,0.0011]
[1773318000294,0.72022589,2064.2,2063.7,0.0011]
[1773318000658,0.71922589,2063.9,2063.7,0.0011]
[1773318002597,0.71922589,2063.7,2063.5,0.0011]
[1773318002756,0.71922589,2063.5,2063.4,0.0011]
[1773318004772,1.93075969,2063.5,2063.4,0.0011]
[1773318004991,0.71922589,2063.4,2063.2,0.0011]
[1773318005197,0.71922589,2063.4,2063.0,0.0011]
[1773318006680,0.71922589,2063.2,2063.0,0.0011]
[1773318007603,0.71922589,2063.1,2063.0,0.0011]
[1773318008475,0.71922589,2063.1,2062.8,0.0011]
[1773318008675,0.71922589,2062.9,2062.8,0.0011]
[1773318012310,0.71922589,2063.2,2062.8,0.0011]
[1773318013531,4.45083336,2063.4,2062.8,0.41496904]
[1773318013696,1.93083336,2063.4,2063.0,0.0011]
[1773318013896,0.001,2063.3,2063.0,0.0011]
[1773318014713,2.52,2063.5,2063.0,0.41343201]
[1773318015008,3.73153555,2063.5,2063.0,0.41343201]
[1773318015402,2.52,2063.5,2063.0,0.41343201]
[1773318015800,1.93070575,2063.6,2063.0,0.41343201]
[1773318016584,1.93070575,2063.6,2063.1,1.21176869]
[1773318017217,0.71922589,2063.5,2063.1,1.21176869]
[1773318020020,0.001,2063.5,2063.1,1.61650566]
[1773318024337,0.001,2063.5,2063.1,1.61649937]
[1773318025028,0.001,2063.5,2063.2,0.39715026]
[1773318025542,0.001,2063.5,2063.2,1.60885389]
[1773318025700,1.21143337,2063.7,2063.3,0.39565862]
[1773318025899,0.001,2063.6,2063.3,0.39565862]
[1773318027840,0.001,2063.6,2063.2,0.0011]
[1773318027841,0.68352237,2063.6,2063.2,0.0011]